Cogmind - Beta 12 @@@ ROGUE MODE // 2023.05.03 @ 12:27:03 Player: ZLD1 Result: Destroyed by G-47 Trooper with Particle Gun Performance ------------- Evolutions (2) 1000 Regions Visited (4) 800 Robots Destroyed (66) 330 Value Destroyed (1809) 1809 Prototype IDs (1) 20 Alien Tech Used (0) 0 Bonus (22) 22 TOTAL SCORE: 3981 Bonus ------- High Alert Combat Kills 22 Cogmind --------- Core Integrity 0/550 Matter 73/450 Energy 280/280 System Corruption 7% Temperature Cool (9) Movement Walking (130) Location -8/Materials Parts ------- > --- POWER (1) -------- Cooled Ion Engine > --- PROPULSION (3) --- Improved Titanium Leg Improved Titanium Leg Improved Titanium Leg > --- UTILITY (4) ------ Medium Storage Unit Large Matter Pod Improved Signal Interpreter Core Shielding > --- WEAPON (3) ------- Flail Heavy Hammer Heavy Mace > --- INVENTORY (10) --- Light Nuclear Core Improved Titanium Leg Small Storage Unit Target Analyzer Propulsion Shielding Great Maul Great Maul Great Maul Great Maul Katana Peak State ------------ > --- POWER ------------ Cooled Ion Engine > --- PROPULSION ------- Improved Titanium Leg Improved Titanium Leg Improved Titanium Leg > --- UTILITY ---------- Medium Storage Unit Large Matter Pod Improved Signal Interpreter Core Shielding > --- WEAPON ----------- Flail Heavy Hammer Heavy Mace > --- INVENTORY -------- Light Nuclear Core Improved Titanium Leg Small Storage Unit Propulsion Shielding Great Maul Great Maul Great Maul Great Maul Katana [Rating: 30] Favorites ----------- Power Ion Engine Engine Ion Engine Propulsion Aluminum Leg Treads Light Treads Leg Aluminum Leg Utility Small Storage Unit Device Sensor Array Storage Small Storage Unit Processor Signal Interpreter Protection Core Shielding Weapon Flak Cannon Ballistic Gun Assault Rifle Ballistic Cannon Flak Cannon Impact Weapon Great Maul Build | -11 -10 -9 -9 -8 ------- Run | Jun Mat Mat Min Mat Slots Evolved 4 | . . 2 . 2 Power . | . . . . . Propulsion 1 | . . . . 1 Utility 2 | . . 1 . 1 Weapon 1 | . . 1 . . Parts Attached 62 | 7 4 24 2 25 Power 12 | 2 1 6 . 3 Engine 12 | 2 1 6 . 3 Core . | . . . . . Reactor . | . . . . . Propulsion 20 | 2 2 6 . 10 Treads 1 | . . 1 . . Leg 19 | 2 2 5 . 10 Wheel . | . . . . . Hover . | . . . . . Flight . | . . . . . Utility 11 | 1 . 4 1 5 Device 2 | . . 1 . 1 Storage 4 | 1 . 1 1 1 Processor 2 | . . 1 . 1 Hackware . | . . . . . Protection 3 | . . 1 . 2 Artifact . | . . . . . Weapon 19 | 2 1 8 1 7 Energy Gun . | . . . . . Energy Cannon . | . . . . . Ballistic Gun 3 | 2 1 . . . Ballistic Cannon 9 | . . 8 1 . Launcher . | . . . . . Special Weapon . | . . . . . Impact Weapon 7 | . . . . 7 Slashing Weapon . | . . . . . Piercing Weapon . | . . . . . Special Melee Weapon . | . . . . . Unidentified Prototypes 1 | . . 1 . . Parts Lost 15 | . . 5 . 10 Power 2 | . . . . 2 Propulsion 7 | . . 3 . 4 Utility 1 | . . . . 1 Weapon 5 | . . 2 . 3 Highest Loss Streak 3 | . . 2 . 3 To Critical Strikes . | . . . . . Average Slot Usage (%) 83 | . 85 79 97 77 Engine 10 | . 14 10 11 6 Treads 2 | . . 4 . . Leg 18 | . 28 11 22 23 Device 3 | . . . 11 2 Storage 11 | . 14 11 11 11 Processor 4 | . . . 11 9 Protection 4 | . . 10 . 1 Ballistic Gun 3 | . 28 . . . Ballistic Cannon 23 | . . 30 30 10 Impact Weapon 2 | . . . . 12 Naked Turns . | . . . . . Heaviest Build 37 | 13 13 32 35 37 Greatest Support 60 | 20 20 23 23 60 Greatest Overweight (x) 10 | . . 10 1 2 Average Overweight (x) . | . . . 1 . Largest Inventory Capacity 10 | 8 8 10 10 10 Average Capacity 8 | 7 8 8 10 10 Most Carried 10 | 5 8 8 10 10 Average Carried 7 | 1 3 7 9 9 Final Capacity 10 | 8 8 8 10 10 Final Carried 10 | 1 8 8 9 10 Class Distribution -------------------- 31% | Tank 30% | Mutant 23% | Scavenger-Skirmisher 12% | Scavenger-Mutant Dominant Class ---------------- Mutant | -10/Materials Tank | -9/Materials Scavenger-Skirmisher | -9/Mines Mutant | -8/Materials Resources | -11 -10 -9 -9 -8 ----------- Run | Jun Mat Mat Min Mat Matter Collected 1882 | 243 167 696 217 559 Remotely . | . . . . . Salvage Created 1891 | . 449 719 24 699 Parts 120 | . 20 45 7 48 Haulers Intercepted 1 | . . 1 . . Recyclers Shooed 4 | . 1 1 . 2 Parts Field Recycled . | . . . . . Retrieved Matter . | . . . . . Parts Self-Destructed . | . . . . . Prevented . | . . . . . Kills | -11 -10 -9 -9 -8 ------- Run | Jun Mat Mat Min Mat Combat Hostiles Destroyed 48 | . 9 17 3 19 Melee 5 | . . . . 5 Guns 9 | . 9 . . . Cannons 29 | . . 17 3 9 AOE 2 | . . . . 2 Classes Destroyed 10 | . 4 5 . 1 Worker 6 | . . 2 . 4 Hauler 1 | . . 1 . . Recycler 4 | . 1 3 . . Mechanic 1 | . . . . 1 Watcher 6 | . 2 3 . 1 Swarmer 12 | . 3 3 3 3 Grunt 25 | . 6 8 . 11 Brawler 1 | . . 1 . . Duelist 2 | . . 1 . 1 Sentry 8 | . . 4 . 4 Best Kill Streak 7 | . 5 6 3 7 Combat Bots Only 6 | . 5 4 3 6 Max Kills in Single Turn 2 | . 1 2 1 2 Gunslinging . | . . . . . Exploded 2 | . . . . 2 Melee 1 | . . . . 1 Uniques/NPCs Destroyed . | . . . . . Combat | -11 -10 -9 -9 -8 -------- Run | Jun Mat Mat Min Mat Damage Taken 3711 | . 395 1281 50 1985 Core 909 | . 134 208 8 559 Absorbed by Shields . | . . . . . Redirected to Shielding 60 | . . 44 . 16 Regen/Repaired (Parts) 44 | . . . . 44 Core Remaining (%) 64 | 100 46 . 46 . Volleys Fired 132 | . 43 45 5 39 Largest 3 | . 2 3 3 3 Hottest 136 | . 40 132 136 136 Shots Fired 276 | . 86 113 15 62 Gun 86 | . 86 . . . Cannon 190 | . . 113 15 62 Launcher . | . . . . . Special . | . . . . . Kinetic 276 | . 86 113 15 62 Thermal . | . . . . . Explosive . | . . . . . Electromagnetic . | . . . . . Robot Hit Streak 18 | . 18 10 5 6 Robot Miss Streak 20 | . 4 20 12 19 Penetration Max . | . . . . . Secondary Targets 3 | . 3 . . . Max Gunslinging Chain 1 | . 1 . . . Shots Hit Robots 217 | . 60 93 7 57 Core Hits 147 | . 21 82 6 38 Critical Kills 4 | . . . . 4 Critical Parts Destroyed 9 | . 1 . . 8 Critical Strikes 13 | . 1 . . 12 Destroy 6 | . 1 . . 5 Smash 7 | . . . . 7 Melee Attacks 40 | . . . . 40 Impact 40 | . . . . 40 Slashing . | . . . . . Piercing . | . . . . . Sneak Attacks 1 | . . . . 1 Combat Hostiles . | . . . . . Follow-up Attacks 4 | . . . . 4 Damage Inflicted 4663 | . 642 1479 97 2445 Guns 639 | . 639 . . . Cannons 2419 | . . 1449 97 873 Explosions 446 | . . . . 446 Melee 1126 | . . . . 1126 Ramming 33 | . 3 30 . . Kinetic 3058 | . 639 1449 97 873 Thermal . | . . . . . Explosive 446 | . . . . 446 Electromagnetic . | . . . . . Impact 1126 | . . . . 1126 Slashing . | . . . . . Piercing . | . . . . . Highest Corruption 7 | . . 2 2 7 Average Corruption 3 | . . 2 2 7 Corruption Purged . | . . . . . Corruption Blocked . | . . . . . Effects 49 | . . 18 16 15 Message Errors 7 | . . 2 3 2 Matter Fused 14 | . . 7 2 5 Heat Flow Errors 8 | . . 3 2 3 Energy Discharges 5 | . . 1 3 1 Data Loss (minor) 11 | . . 4 4 3 Data Loss (major) 3 | . . 1 2 . Alerts 1 | . . . . 1 Overload Shots . | . . . . . Overflow Damage 536 | . . . . 536 Projectiles 18 | . . . . 18 Explosions 218 | . . . . 218 Melee 300 | . . . . 300 Knockbacks 64 | . . 41 2 21 Impact 8 | . . . . 8 Kinetic 52 | . . 39 2 11 Secondary 4 | . . 2 . 2 Self-Inflicted Damage 167 | . . . . 167 Shots 2 | . . . . 2 Rammed 3 | . . 3 . . Targets Rammed 17 | . 1 16 . . Kicked 14 | . 1 13 . . Crushed . | . . . . . Highest Temperature 259 | . 18 252 259 240 Average Temperature 76 | . 8 83 119 65 Received Heat Transfer 1551 | . 162 453 . 936 Effects 2 | . . 2 . . Energy Bleed 2 | . . 2 . . Siege Activations . | . . . . . Robots Corrupted . | . . . . . Combat Hostiles . | . . . . . Parts Fried 3 | . . . . 3 Impact Corruptions 12 | . . . . 12 Robots Melted . | . . . . . Combat Hostiles . | . . . . . Parts Melted . | . . . . . Heat Transferred . | . . . . . Parts Sabotaged . | . . . . . Parts Stolen . | . . . . . Parts Stripped . | . . . . . Power Chain Reactions . | . . . . . Missiles Intercepted . | . . . . . Alert | -11 -10 -9 -9 -8 ------- Run | Jun Mat Mat Min Mat Peak Influence 514 | . 334 358 93 514 Initial 141 | . . 141 80 . Average 186 | . 181 219 61 285 Maximum Alert Level 2 | . 1 1 . 2 Low Security (%) 56 | 100 56 45 100 26 Level 1 35 | . 43 54 . 38 Level 2 7 | . . . . 34 Level 3 . | . . . . . Level 4 . | . . . . . Level 5 . | . . . . . High Security . | . . . . . Max Security . | . . . . . Squads Dispatched 7 | . 2 1 . 4 Investigation . | . . . . . Extermination . | . . . . . Reinforcement 7 | . 2 1 . 4 Assault . | . . . . . Garrison . | . . . . . Intercept . | . . . . . Searches Triggered . | . . . . . Construction Impeded 1 | . . . . 1 Haulers Reinforced . | . . . . . Active Scanning Responses . | . . . . . Cargo Convoy Interrupts . | . . . . . Stealth | -11 -10 -9 -9 -8 --------- Run | Jun Mat Mat Min Mat Distress Signals 9 | . 2 1 . 6 Communications Jammed . | . . . . . Distress Signals . | . . . . . Times Spotted 89 | . 16 35 3 35 Peak Tracking Total 8 | . 3 4 2 8 Tactical Retreats 9 | . 2 . . 7 Traps | -11 -10 -9 -9 -8 ------- Run | Jun Mat Mat Min Mat Traps Triggered 2 | . . 1 . 1 Indirectly . | . . . . . Trap Hack Attempts . | . . . . . Triggered . | . . . . . Disarmed . | . . . . . Reprogrammed . | . . . . . Reused . | . . . . . Traps Extracted . | . . . . . Installed . | . . . . . Triggered 1 | . . . . 1 Machines | -11 -10 -9 -9 -8 ---------- Run | Jun Mat Mat Min Mat Machines Disabled 4 | . . . 1 3 Max in Single Turn 3 | . . . 1 3 Machines Repaired . | . . . . . Machines Sabotaged . | . . . . . Overloaded Fab Kills . | . . . . . Hacking | -11 -10 -9 -9 -8 --------- Run | Jun Mat Mat Min Mat Machines Accessed 4 | . . . 1 3 Terminals 2 | . . . 1 1 Fabricators . | . . . . . Repair Stations 2 | . . . . 2 Recycling Units . | . . . . . Scanalyzers . | . . . . . Garrison Access . | . . . . . Total Hacks 9 | . . . 2 7 Successful 3 | . . . 1 2 Failed 6 | . . . 1 5 Catastrophic . | . . . . . Database Lockouts . | . . . . . Manual . | . . . . . Terminals 5 | . . . 2 3 Fabricators . | . . . . . Repair Stations 4 | . . . . 4 Recycling Units . | . . . . . Scanalyzers . | . . . . . Garrison Access . | . . . . . Terminal Hacks 1 | . . . 1 . Zone Layout 1 | . . . 1 . Fabricator Hacks . | . . . . . Repair Station Hacks 2 | . . . . 2 Scan Component 1 | . . . . 1 Repair 1 | . . . . 1 Recycling Unit Hacks . | . . . . . Scanalyzer . | . . . . . Garrison Access Hacks . | . . . . . Unauthorized Hacks . | . . . . . Terminals . | . . . . . Fabricators . | . . . . . Repair Stations . | . . . . . Recycling Units . | . . . . . Scanalyzers . | . . . . . Garrison Access . | . . . . . Data Cores Recovered . | . . . . . Used . | . . . . . Hacking Detections 2 | . . . . 2 Full Trace Events . | . . . . . Feedback Events . | . . . . . Feedback Blocked . | . . . . . Robot Schematics Acquired . | . . . . . Robots Built . | . . . . . Authchips . | . . . . . Time . | . . . . . Total Robot Build Rating . | . . . . . Part Schematics Acquired . | . . . . . Parts Built . | . . . . . Authchips . | . . . . . Time . | . . . . . Total Part Build Rating . | . . . . . Parts Repaired 1 | . . . . 1 Time 26 | . . . . 26 Parts Recycled . | . . . . . Recycled Matter . | . . . . . Retrieved Matter . | . . . . . Retrieved Components . | . . . . . Parts Scanalyzed . | . . . . . Part Schematics Acquired . | . . . . . Parts Damaged . | . . . . . Bothacking | -11 -10 -9 -9 -8 ------------ Run | Jun Mat Mat Min Mat Used RIF Installer . | . . . . . Robots Hacked . | . . . . . Non-combat . | . . . . . Combat . | . . . . . Robot Hacks Applied . | . . . . . Relay Couplers Released . | . . . . . Fabnet Peak Effective % . | . . . . . Robots Rewired . | . . . . . Allies Hacked . | . . . . . Hacks Repelled . | . . . . . Allies | -11 -10 -9 -9 -8 -------- Run | Jun Mat Mat Min Mat Total Allies . | . . . . . Largest Group . | . . . . . Highest-Rated Group . | . . . . . Highest-Rated Ally . | . . . . . Total Orders . | . . . . . Ally Attacks . | . . . . . Total Damage . | . . . . . Kills . | . . . . . Allies Corrupted . | . . . . . Allies Melted . | . . . . . Intel | -11 -10 -9 -9 -8 ------- Run | Jun Mat Mat Min Mat Robot Analysis Total . | . . . . . Derelict Logs Recovered 1 | . . . 1 . Drone Launches . | . . . . . Drone Recoveries . | . . . . . Exploration | -11 -10 -9 -9 -8 ------------- Run | Jun Mat Mat Min Mat Turns Passed 3706 | 73 376 1594 904 759 Spaces Moved 1605 | 61 186 637 464 257 Core 23 | 19 . 4 . . Treads 258 | . . 258 . . Legs 1324 | 42 186 375 464 257 Wheels . | . . . . . Hover . | . . . . . Flight . | . . . . . Fastest Speed 50 | 50 120 120 190 120 Average Speed 179 | 98 120 207 190 154 Slowest Speed 550 | 120 120 550 190 260 Overloaded Moves . | . . . . . Propulsion Burnouts . | . . . . . Robots Hopped . | . . . . . Cave-ins Triggered 1 | . . . . 1 Exploration Rate (%) 39 | 3 34 34 96 30 Regions Visited 4 Branch Regions 1 Pre-discovered Areas 2 | . . . 2 . Known Exits Taken 2 | . . 1 1 . Unknown Exits Taken 2 | 1 1 . . . Scrap Searched 1 | . . . 1 . Spaces Dug . | . . . . . Terrain Destroyed 52 | . . . 3 49 Melee . | . . . . . Projectile 19 | . . . 3 16 AOE 33 | . . . . 33 Terrain Rammed . | . . . . . Walls Destroyed . | . . . . . Machines Disabled . | . . . . . Actions | -11 -10 -9 -9 -8 --------- Run | Jun Mat Mat Min Mat Total 2111 | 72 260 805 475 499 Wait 195 | . 14 48 2 131 Move 1601 | 60 185 636 463 257 Hop . | . . . . . Pick Up 40 | 5 10 16 2 7 Fast Attach 25 | 2 . 11 1 11 Attach 18 | 4 . 7 . 7 Detach 3 | . . . . 3 Swap 19 | 1 4 6 1 7 Drop 30 | . 3 20 1 6 Fire 132 | . 43 45 5 39 Melee 31 | . . . . 31 Ram . | . . . . . Kick 14 | . 1 13 . . Crush 3 | . . 3 . . Escape Stasis . | . . . . . Rewire . | . . . . . Trap . | . . . . . Miscellaneous . | . . . . . Route ------- -11/Junkyard -10/Materials (discovered 2 exits: [*Mat] / [*Min]) -9/Materials -9/Mines (discovered 2 exits: *Mat / [*Exi]) -8/Materials History --------- Turn | Location | Event 7 | -11/Junkyard | Discovered new exit (range 15) 74 | -11/Junkyard | Entered Materials 220 | -10/Materials | Discovered new exit (range 14) 303 | -10/Materials | Build established: Mutant 346 | -10/Materials | Core integrity fell below 50% 429 | -10/Materials | Discovered new exit (range 6) 450 | -10/Materials | Entered another Materials area 450 | -9/Materials | Evolved 2 slots: Utility x1, Weapon x1 830 | -9/Materials | Build established: Tank 1562 | -9/Materials | Discovered new exit (range 9) 1916 | -9/Materials | Core integrity fell below 50% 2040 | -9/Materials | Identified exit to Mines 2044 | -9/Materials | Entered Mines 2121 | -9/Mines | Deemed a non-threat by the Exiles lab entrance 2121 | -9/Mines | Discovered new exit (range 5) 2242 | -9/Mines | A weapon hastily lodged in a ceiling crevice suddenly fell to the ground 2300 | -9/Mines | Received a Rocket Launcher from a helpful Derelict 2552 | -9/Mines | Build established: Scavenger-Skirmisher 2606 | -9/Mines | Learned location of Storage (-7) 2937 | -9/Mines | Discovered new exit (range 6) 2944 | -9/Mines | Identified exit to Materials 2948 | -9/Mines | Entered Materials 2948 | -8/Materials | Evolved 2 slots: Propulsion x1, Utility x1 3123 | -8/Materials | Crushed by falling debris 3154 | -8/Materials | Lost 3 parts (1n1u1w) 3338 | -8/Materials | Core integrity fell below 50% 3371 | -8/Materials | Core integrity fell below 20% 3660 | -8/Materials | Build established: Mutant 3665 | -8/Materials | Repaired Core Shielding 3707 | -8/Materials | Destroyed by G-47 Trooper with Particle Gun Last Messages --------------- 03626_ Acquired 33 matter. 03639_ Connecting with Repair Station... >>Scan(Core Shielding) Scanning Core Shielding... Ready to Repair: Core Shielding Rating: 1 Time: 26 >>Repair Repairing Core Shielding... ETC: 26 03641_ OSNLDF%SY/WH%VJPAPDHOX V8XUND2CT>VW>T 03665_ Repair station completes Core Shielding repairs. 03665_ Acquired Core Shielding. 03666_ Dropped Flail. 03680_ Acquired Unknown Impact Weapon. 03680_ Identified Hvy. Mace. 03683_ Discarded Signal Interpreter. 03688_ Acquired Target Analyzer. 03702_ G-47 Trooper knocked back. Map ----- +----------------------------------------------------+ | ????????????????????# """%#! | | ????????????????????# """ /* | | ????????????????????# """="[! | | ????????????????????#! # | | ????????????????????# ### | | ????????????????????########?# | | ?????????????????????????????# | | ?????????????????????????????# | | ?????????????????????????????# | | ?????????????????????????????# | | ?????????????????????????????# | | ?????????????????????????????# | | ?????????????????????????????# | | ?????????????????????????????# | | ?????????????????????????????# | | ????????##########???????##### | | ???????# #???????#[[ | | ???????# ! #???????#[[ | | ???????# #???????#= | | ######## #???????# | | # # ????????#!! | | # """ # ??????????#!! | | # """ # ! ????????????##### | | # """ # ?????????????????## | | # a #+##+################# | | # """ @# | | # """ g | | # """ # | | # ##+#+######+########## | | #""" ! ## ## [ #?????### | | #"R/ ## ##""" #???????? | | #""" ## / ##""" = #???????? | | # ! ## / ##""" #???????? | | #### #### / ## #???????? | | ???###??# ## ! #???????? | | ????????# #########???????? | | ????????# #???????????????? | | ????????# """ #???????????????? | | ????????# """ #???????????????? | | ????????# """ #???????????????? | | ????????# #???????????????? | | ????????#######???????????????? | | ??????????????????????????????? | | ??????????????????????????????? | | ??????????????????????????????? | | ??????????????????????????????? | | ??????????????????????????????? | | ??????????????????????????????? | | ??????????????????????????????? | | ??????????????????????????????? | +----------------------------------------------------+ Best States ------------- Heat Dissipation 31 Energy Generation 14 Energy Capacity 280 Matter Stores 300 Matter Capacity 450 Sight Range 16 Robot Scan Range 15 Terrain Scan Density 10 Core Shielding 20 Propulsion Shielding 33 Evasion (%) 55 Recoil Reduction 1 Item Schematics ----------------- None Robot Schematics ------------------ None Fabricated ------------ Nothing Alien Tech Used ----------------- None Achievements -------------- None Challenges ------------ None Game ------ Seed ProtonAuthchipWheel Manual? 0 Play Time 00:27:43 Cumulative 47.6 hours Start 2023.04.29 @ 18:12:20 End 2023.05.03 @ 12:27:03 Sessions 3 Manual Loads 0 Difficulty Rogue Special Mode None Game No. 105 Rogue 105 Adventurer 0 Explorer 0 Win Type - Total 0 Types 0/0/0/0/0/0/0/0/0 Lore% 26 Gallery% 40 Achievement% 30 Wizard Run 0 Options --------- ASCII 0 Keyboard 0 Movement Mouse Keybinds 0 Fullscreen 1 Font 24/Smallcaps Map View 64x52 Tactical HUD 1 Map Filters NONE Filters NONE Steam 1 RUN: 035a5a6f-228a-475e-8acc-f848f1fb80a7